Cogmind - Beta 14 @@@ ROGUE MODE // 2024.12.14 @ 12:39:26 Player: Occam Result: Self-destructed Performance ------------- Evolutions (3) 1500 Regions Visited (6) 1200 Robots Destroyed (130) 650 Value Destroyed (2970) 2970 Prototype IDs (10) 200 Alien Tech Used (0) 0 Bonus (143) 143 TOTAL SCORE: 6663 Bonus ------- High Alert Combat Kills 143 Cogmind --------- Core Integrity 700/700 Matter 156/300 Energy 280/280 System Corruption 0% Temperature Cool (0) Movement Rolling (190) Ox6 Location -7/Factory Parts ------- > --- POWER (1) -------- Cooled Ion Engine > --- PROPULSION (2) --- Light Treads Compact Wheel > --- UTILITY (8) ------ Huge Storage Unit Structural Scanner Machine Analyzer Improved Sensor Array Improved Signal Interpreter Improved Medium Armor Plating Hacking Suite System Shield > --- WEAPON (2) ------- Enhanced Autogun Powered Hammer > --- INVENTORY (25) --- Cooled Ion Engine Light Treads Armored Treads Advanced Treads Cesium-ion Thruster Cesium-ion Thruster Small Storage Unit Large Matter Pod (150) Structural Scanner Transport Network Coupler ECM Suite Hardened Medium Armor Plating Improved Medium Armor Plating Improved Medium Armor Plating System Shield Authchip [Device] Enhanced Autogun Enhanced Autogun Enhanced Autogun Heavy Rocket Launcher Heavy Rocket Launcher Datajack Peak State ------------ > --- POWER ------------ Cooled Ion Engine > --- PROPULSION ------- Armored Treads Compact Wheel > --- UTILITY ---------- Huge Storage Unit Structural Scanner Machine Analyzer Improved Sensor Array Improved Medium Armor Plating Improved Medium Armor Plating Hacking Suite System Shield > --- WEAPON ----------- Enhanced Autogun Enhanced Autogun > --- INVENTORY -------- Cooled Ion Engine Light Treads Light Treads Advanced Treads Cesium-ion Thruster Cesium-ion Thruster Small Storage Unit Large Matter Pod Structural Scanner Improved Signal Interpreter Transport Network Coupler ECM Suite Hardened Medium Armor Plating Improved Medium Armor Plating System Shield Authchip [Device] Enhanced Autogun Enhanced Autogun Enhanced Autogun Heavy Rocket Launcher Heavy Rocket Launcher Datajack Powered Hammer [Rating: 43] Favorites ----------- Power Ion Engine Engine Ion Engine Power Core Enhanced Nuclear Core Propulsion Compact Wheel Treads Light Treads Leg Aluminum Leg Wheel Compact Wheel Utility Huge Storage Unit Device Seismic Detector Storage Huge Storage Unit Processor Transport Network Coupler Hackware Hacking Suite Protection Improved Medium Armor Plating Weapon Improved Assault Rifle Energy Gun Field Laser Energy Cannon Advanced Beam Cannon Ballistic Gun Improved Assault Rifle Launcher Rocket Launcher Impact Weapon Powered Hammer Build | -11 -10 -10 -10 -9 -8 -7 ------- Run | Yrd Mat Min Exi Min Mat Fac Slots Evolved 6 | . . . . . 4 2 Power . | . . . . . . . Propulsion . | . . . . . . . Utility 6 | . . . . . 4 2 Weapon . | . . . . . . . Parts Attached 100 | 2 17 3 . 4 58 16 Power 11 | . 3 1 . . 7 . Engine 10 | . 3 1 . . 6 . Core 1 | . . . . . 1 . Reactor . | . . . . . . . Propulsion 22 | . 9 . . . 9 4 Treads 15 | . 5 . . . 7 3 Leg 1 | . 1 . . . . . Wheel 6 | . 3 . . . 2 1 Hover . | . . . . . . . Flight . | . . . . . . . Utility 29 | 1 2 . . . 21 5 Device 7 | 1 . . . . 4 2 Storage 3 | . 2 . . . 1 . Processor 3 | . . . . . 1 2 Hackware 2 | . . . . . 2 . Protection 14 | . . . . . 13 1 Artifact . | . . . . . . . Weapon 38 | 1 3 2 . 4 21 7 Energy Gun 5 | 1 . . . . 4 . Energy Cannon 1 | . . . . . 1 . Ballistic Gun 24 | . 3 1 . 2 13 5 Ballistic Cannon . | . . . . . . . Launcher 5 | . . 1 . 2 2 . Special Weapon . | . . . . . . . Impact Weapon 3 | . . . . . 1 2 Slashing Weapon . | . . . . . . . Piercing Weapon . | . . . . . . . Special Melee Weapon . | . . . . . . . Unidentified Prototypes 9 | . 2 . . . 7 . Parts Lost 21 | . 4 1 . . 13 3 Power 3 | . 1 1 . . 1 . Propulsion 7 | . 2 . . . 4 1 Utility 6 | . . . . . 5 1 Weapon 5 | . 1 . . . 3 1 Highest Loss Streak 3 | . 1 1 . . 2 3 To Critical Strikes 1 | . . . . . 1 . Average Slot Usage (%) 98 | . 99 99 100 100 97 91 Engine 11 | . 13 13 14 14 8 7 Treads 10 | . 12 14 14 14 9 8 Leg 1 | . 7 . . . . . Wheel 9 | . 7 14 14 14 8 4 Device 13 | . 14 14 14 14 12 11 Storage 11 | . 14 14 14 14 9 7 Processor 4 | . . . . . 7 15 Hackware 2 | . . . . . 4 15 Protection 8 | . . . . . 17 5 Energy Gun 2 | . 3 . . . 3 . Ballistic Gun 19 | . 24 27 28 27 14 11 Peak Build Rating 43 | 7 14 14 14 16 37 43 Average Rating 21 | 6 11 13 14 14 28 36 On Entrance 15 | 6 7 14 14 14 16 37 Naked Turns . | . . . . . . . Heaviest Build 116 | 14 92 92 92 93 116 103 Greatest Support 40 | 20 40 16 16 16 40 40 Greatest Overweight (x) 7 | . 5 5 5 5 7 6 Average Overweight (x) 4 | . 2 5 5 5 5 5 Largest Inventory Capacity 25 | 8 25 25 25 25 25 25 Average Capacity 23 | 8 18 25 25 25 25 25 Most Carried 25 | 7 25 23 25 25 25 24 Average Carried 21 | 5 14 22 23 24 24 21 Final Capacity 25 | 8 25 25 25 25 25 25 Final Carried 25 | 5 23 23 25 24 25 22 Class Distribution -------------------- 75% | Mutant 16% | Scavenger-Mutant 5% | Hacker-Mutant Dominant Class ---------------- Mutant | -10/Materials Mutant | -10/Mines Mutant | -10/Exiles Mutant | -9/Mines Mutant | -8/Materials Hacker-Skirmisher | -7/Factory Resources | -11 -10 -10 -10 -9 -8 -7 ----------- Run | Yrd Mat Min Exi Min Mat Fac Matter Collected 2859 | 226 632 137 . 88 1560 216 Remotely . | . . . . . . . Salvage Created 4143 | 103 983 193 . 297 2326 241 Parts 267 | 9 70 29 . 24 129 6 Haulers Intercepted 5 | . 1 . . . 4 . Recyclers Shooed 3 | 1 1 . . . 1 . Parts Field Recycled . | . . . . . . . Retrieved Matter . | . . . . . . . Parts Self-Destructed . | . . . . . . . Prevented . | . . . . . . . Kills | -11 -10 -10 -10 -9 -8 -7 ------- Run | Yrd Mat Min Exi Min Mat Fac Combat Hostiles Destroyed 89 | . 20 10 . 9 48 2 Guns 72 | . 20 7 . 3 40 2 AOE 16 | . . 3 . 6 7 . Classes Destroyed 14 | 2 7 . . 1 4 . Worker 9 | . 2 2 . 3 2 . Builder 4 | . 2 . . . 2 . Tunneler 4 | 2 1 1 . . . . Hauler 5 | . 1 . . . 4 . Recycler 10 | 1 3 . . 2 3 1 Operator 4 | . 1 . . . 3 . Watcher 6 | . 1 . . . 4 1 Swarmer 38 | . 9 9 . 7 13 . Grunt 38 | . 11 1 . 1 24 1 Brawler 1 | . . . . 1 . . Duelist 2 | . . . . . 1 1 Protector 1 | . . . . . 1 . Sentry 7 | . . . . . 7 . Hunter 2 | . . . . . 2 . Best Kill Streak 11 | 2 5 3 . 7 11 1 Combat Bots Only 9 | . 3 3 . 6 9 1 Max Kills in Single Turn 3 | 1 1 2 . 3 3 1 Gunslinging . | . . . . . . . Exploded 3 | . . 2 . 3 2 . Melee . | . . . . . . . Uniques/NPCs Destroyed . | . . . . . . . Combat | -11 -10 -10 -10 -9 -8 -7 -------- Run | Yrd Mat Min Exi Min Mat Fac Hostile Shots Fired 465 | . 84 22 . 19 318 22 Missed 119 | . 20 5 . 6 85 3 Damage Taken 5015 | . 703 178 . 116 3439 579 Core 580 | . 178 16 . 46 340 . Absorbed by Shields . | . . . . . . . Redirected to Shielding 26 | . . . . . 26 . Regen/Repaired (Parts) 411 | . . . . . 411 . Core Remaining (%) 47 | 100 . . . 4 38 . Volleys Fired 347 | 6 80 17 . 15 209 20 Largest 2 | 2 2 2 . 2 2 2 Hottest 88 | 70 70 46 . 46 88 50 Shots Fired 674 | 12 160 32 . 24 409 37 Gun 659 | 12 160 30 . 18 402 37 Cannon . | . . . . . . . Launcher 15 | . . 2 . 6 7 . Special . | . . . . . . . Kinetic 509 | 6 128 30 . 18 290 37 Thermal 150 | 6 32 . . . 112 . Explosive 15 | . . 2 . 6 7 . Electromagnetic . | . . . . . . . Robot Hit Streak 16 | 5 12 6 . 10 16 14 Robot Miss Streak 9 | 2 5 2 . 1 9 3 Penetration Max . | . . . . . . . Secondary Targets 9 | . 2 . . . 7 . Max Gunslinging Chain 1 | . 1 . . . 1 . Shots Hit Robots 427 | 8 99 16 . 11 264 29 Core Hits 209 | 5 46 15 . 16 118 9 Critical Kills . | . . . . . . . Critical Parts Destroyed 3 | . 1 . . . 1 1 Critical Strikes 13 | 1 5 . . . 6 1 Burn 10 | 1 4 . . . 5 . Destroy 2 | . 1 . . . 1 . Smash 1 | . . . . . . 1 Melee Attacks 4 | . . . . . 1 3 Impact 4 | . . . . . 1 3 Slashing . | . . . . . . . Piercing . | . . . . . . . Sneak Attacks . | . . . . . . . Combat Hostiles . | . . . . . . . Follow-up Attacks . | . . . . . . . Damage Inflicted 8592 | 90 1377 398 . 553 5643 531 Guns 6456 | 90 1354 239 . 177 4137 459 Cannons . | . . . . . . . Explosions 2011 | . . 159 . 376 1476 . Melee 72 | . . . . . . 72 Ramming 53 | . 23 . . . 30 . Kinetic 4998 | 28 1104 239 . 177 2991 459 Thermal 1458 | 62 250 . . . 1146 . Explosive 2011 | . . 159 . 376 1476 . Electromagnetic . | . . . . . . . Impact 72 | . . . . . . 72 Slashing . | . . . . . . . Piercing . | . . . . . . . Highest Corruption . | . . . . . . . Average Corruption . | . . . . . . . Corruption Purged . | . . . . . . . Corruption Blocked . | . . . . . . . Overload Shots . | . . . . . . . Overflow Damage 91 | . . . . 9 57 25 Projectiles . | . . . . . . . Explosions 66 | . . . . 9 57 . Melee 25 | . . . . . . 25 Knockbacks 2 | . . . . . . 2 Impact 2 | . . . . . . 2 Kinetic . | . . . . . . . Secondary . | . . . . . . . Self-Inflicted Damage 168 | . . . . . 168 . Shots 7 | . . . . . 7 . Rammed 3 | . . . . . 3 . Targets Rammed 7 | . 4 . . . 3 . Kicked 4 | . 4 . . . . . Crushed . | . . . . . . . Highest Temperature 378 | 90 208 4 . 1 378 5 Average Temperature 65 | 48 62 4 . 1 68 3 Received Heat Transfer 1848 | . 258 45 . 6 1503 36 Effects 4 | . . . . . 4 . Energy Bleed 1 | . . . . . 1 . Interference 3 | . . . . . 3 . Siege Activations . | . . . . . . . Robots Corrupted . | . . . . . . . Combat Hostiles . | . . . . . . . Parts Fried . | . . . . . . . Impact Corruptions 2 | . . . . . . 2 Robots Melted 1 | . . . . . 1 . Combat Hostiles 1 | . . . . . 1 . Parts Melted 19 | 1 3 . . . 15 . Heat Transferred 4218 | 259 1036 . . . 2923 . Parts Sabotaged . | . . . . . . . Parts Stolen . | . . . . . . . Parts Stripped . | . . . . . . . Power Chain Reactions . | . . . . . . . Alert | -11 -10 -10 -10 -9 -8 -7 ------- Run | Yrd Mat Min Exi Min Mat Fac Peak Influence 726 | 15 309 224 . 177 726 383 Initial 329 | . 9 34 . . 29 329 Average 223 | 8 108 116 . 127 304 367 Maximum Alert Level 3 | . 1 1 . 1 3 1 Low Security (%) 51 | 100 72 84 . 99 31 . Level 1 32 | . 27 15 . . 38 100 Level 2 14 | . . . . . 26 . Level 3 1 | . . . . . 3 . Level 4 . | . . . . . . . Level 5 . | . . . . . . . High Security . | . . . . . . . Max Security . | . . . . . . . Squads Dispatched 15 | . 4 . . 1 9 1 Investigation 8 | . 2 . . 1 4 1 Extermination . | . . . . . . . Reinforcement 5 | . 2 . . . 3 . Assault 2 | . . . . . 2 . Garrison . | . . . . . . . Intercept . | . . . . . . . Searches Triggered . | . . . . . . . Construction Impeded 1 | . . . . . 1 . Haulers Reinforced . | . . . . . . . Active Scanning Responses . | . . . . . . . Cargo Convoy Interrupts . | . . . . . . . Stealth | -11 -10 -10 -10 -9 -8 -7 --------- Run | Yrd Mat Min Exi Min Mat Fac Distress Signals 6 | . 1 . . . 5 . Communications Jammed . | . . . . . . . Distress Signals . | . . . . . . . Times Spotted 145 | . 29 11 . 8 91 6 Peak Tracking Total 10 | . 3 3 . 4 10 3 Tactical Retreats 7 | . 4 1 . . 1 1 Traps | -11 -10 -10 -10 -9 -8 -7 ------- Run | Yrd Mat Min Exi Min Mat Fac Traps Triggered 7 | . 6 . . . . 1 Indirectly . | . . . . . . . Trap Hack Attempts . | . . . . . . . Triggered . | . . . . . . . Disarmed . | . . . . . . . Reprogrammed . | . . . . . . . Reused . | . . . . . . . Traps Extracted . | . . . . . . . Installed . | . . . . . . . Triggered . | . . . . . . . Machines | -11 -10 -10 -10 -9 -8 -7 ---------- Run | Yrd Mat Min Exi Min Mat Fac Machines Disabled 7 | . 1 2 . . 4 . Max in Single Turn 1 | . 1 1 . . 1 . Garrison Access 1 | . . . . . 1 . Machines Repaired . | . . . . . . . Machines Dismantled . | . . . . . . . Machines Sabotaged . | . . . . . . . Overloaded Fab Kills . | . . . . . . . Hacking | -11 -10 -10 -10 -9 -8 -7 --------- Run | Yrd Mat Min Exi Min Mat Fac Machines Accessed 19 | . 5 . 1 1 11 1 Terminals 13 | . 5 . . . 8 . Fabricators . | . . . . . . . Repair Stations 1 | . . . . . 1 . Recycling Units 1 | . . . . . 1 . Scanalyzers . | . . . . . . . Garrison Access 2 | . . . . . 1 1 Total Hacks 62 | . 18 . 1 1 40 2 Successful 29 | . 6 . 1 1 21 . Failed 32 | . 11 . . . 19 2 Catastrophic 5 | . 1 . . . 2 2 Database Lockouts 1 | . 1 . . . . . Manual 33 | . 16 . . . 17 . Terminals 44 | . 18 . . . 26 . Fabricators . | . . . . . . . Repair Stations 8 | . . . . . 8 . Recycling Units 4 | . . . . . 4 . Scanalyzers . | . . . . . . . Garrison Access 4 | . . . . . 2 2 Terminal Hacks 14 | . 4 . 1 1 8 . Record 1 | . . . 1 . . . Part Schematic 1 | . . . . . 1 . Robot Analysis 4 | . 1 . . . 3 . Prototype ID Bank 1 | . 1 . . . . . Open Door 1 | . . . . 1 . . Terminal Index 2 | . 1 . . . 1 . Unreport Threat 2 | . 1 . . . 1 . Locate Traps 1 | . . . . . 1 . Hauler Manifests 1 | . . . . . 1 . Fabricator Hacks . | . . . . . . . Repair Station Hacks 6 | . . . . . 6 . Scan Component 3 | . . . . . 3 . Repair 3 | . . . . . 3 . Recycling Unit Hacks 4 | . . . . . 4 . Report Inventory 3 | . . . . . 3 . Retrieve Components 1 | . . . . . 1 . Scanalyzer . | . . . . . . . Garrison Access Hacks 1 | . . . . . 1 . Seal Access 1 | . . . . . 1 . Unauthorized Hacks 4 | . 2 . . . 2 . Terminals 4 | . 2 . . . 2 . Botnet 4 | . 2 . . . 2 . Fabricators . | . . . . . . . Repair Stations . | . . . . . . . Recycling Units . | . . . . . . . Scanalyzers . | . . . . . . . Garrison Access . | . . . . . . . Data Cores Recovered . | . . . . . . . Used . | . . . . . . . Hacking Detections 16 | . 5 . . . 10 1 Full Trace Events 5 | . . . . . 4 1 Feedback Events . | . . . . . . . Feedback Blocked . | . . . . . . . Robot Schematics Acquired . | . . . . . . . Robots Built . | . . . . . . . Authchips . | . . . . . . . Time . | . . . . . . . Total Robot Build Rating . | . . . . . . . Part Schematics Acquired 1 | . . . . . 1 . Parts Built . | . . . . . . . Authchips . | . . . . . . . Time . | . . . . . . . Total Part Build Rating . | . . . . . . . Parts Repaired 3 | . . . . . 3 . Time 108 | . . . . . 108 . Parts Recycled . | . . . . . . . Recycled Matter . | . . . . . . . Retrieved Matter . | . . . . . . . Retrieved Components 10 | . . . . . 10 . Parts Scanalyzed . | . . . . . . . Part Schematics Acquired . | . . . . . . . Parts Damaged . | . . . . . . . Bothacking | -11 -10 -10 -10 -9 -8 -7 ------------ Run | Yrd Mat Min Exi Min Mat Fac Used RIF Installer . | . . . . . . . Robots Hacked . | . . . . . . . Non-combat . | . . . . . . . Combat . | . . . . . . . Robot Hacks Applied . | . . . . . . . Relay Couplers Released . | . . . . . . . Fabnet Peak Effective % . | . . . . . . . Robots Rewired . | . . . . . . . Allies Hacked . | . . . . . . . Hacks Repelled . | . . . . . . . Allies | -11 -10 -10 -10 -9 -8 -7 -------- Run | Yrd Mat Min Exi Min Mat Fac Total Allies . | . . . . . . . Largest Group . | . . . . . . . Highest-Rated Group . | . . . . . . . Highest-Rated Ally . | . . . . . . . Total Orders . | . . . . . . . Ally Attacks . | . . . . . . . Total Damage . | . . . . . . . Kills . | . . . . . . . Allies Corrupted . | . . . . . . . Allies Melted . | . . . . . . . Intel | -11 -10 -10 -10 -9 -8 -7 ------- Run | Yrd Mat Min Exi Min Mat Fac Robot Analysis Total 4 | . 1 . . . 3 . Derelict Logs Recovered . | . . . . . . . Drone Launches . | . . . . . . . Drone Recoveries . | . . . . . . . Exploration | -11 -10 -10 -10 -9 -8 -7 ------------- Run | Yrd Mat Min Exi Min Mat Fac Turns Passed 7728 | 60 1798 763 612 436 3832 227 Spaces Moved 3543 | 23 930 403 350 221 1546 70 Core . | . . . . . . . Treads 120 | . 103 . . . 2 15 Legs 346 | 23 323 . . . . . Wheels 3077 | . 504 403 350 221 1544 55 Hover . | . . . . . . . Flight . | . . . . . . . Fastest Speed 120 | 120 120 175 175 175 175 190 Average Speed 176 | 120 155 175 175 175 189 217 Slowest Speed 480 | 120 480 175 175 175 320 320 Overloaded Moves . | . . . . . . . Propulsion Burnouts . | . . . . . . . Robots Hopped . | . . . . . . . Cave-ins Triggered . | . . . . . . . Exploration Rate (%) 57 | 3 99 82 70 57 87 3 Regions Visited 6 Branch Regions 3 Pre-discovered Areas 1 | . . 1 . . . . Known Exits Taken . | . . . . . . . Unknown Exits Taken 6 | 1 1 1 1 1 1 . Scrap Searched 3 | . . 2 . 1 . . Spaces Dug 33 | . . . . 31 1 1 Terrain Destroyed 112 | . . 14 . 46 51 1 Melee 2 | . . . . . 1 1 Projectile . | . . . . . . . AOE 110 | . . 14 . 46 50 . Terrain Rammed . | . . . . . . . Walls Destroyed . | . . . . . . . Machines Disabled . | . . . . . . . Actions | -11 -10 -10 -10 -9 -8 -7 --------- Run | Yrd Mat Min Exi Min Mat Fac Total 4375 | 44 1131 428 350 247 2061 114 Wait 244 | 11 59 5 . . 169 . Move 3537 | 22 929 402 349 220 1545 70 Hop . | . . . . . . . Pick Up 67 | 1 28 1 1 4 29 3 Fast Attach 38 | 1 9 . . . 22 6 Attach 30 | . 6 1 . . 15 8 Detach 10 | . 2 . . . 6 2 Swap 34 | 1 3 2 . 4 22 2 Drop 57 | 2 11 . . 4 40 . Fire 347 | 6 80 17 . 15 209 20 Melee 4 | . . . . . 1 3 Ram 3 | . . . . . 3 . Kick 4 | . 4 . . . . . Crush . | . . . . . . . Escape Stasis . | . . . . . . . Rewire . | . . . . . . . Trap . | . . . . . . . Miscellaneous . | . . . . . . . Route ------- -11/Scrapyard -10/Materials (discovered 5 exits: [*Mat x3] / [*Min] / [*Sub]) -10/Mines (discovered 3 exits: [*Mat x2] / *Exi) -10/Exiles -9/Mines -8/Materials (discovered 2 exits: *Fac x2) -7/Factory History --------- Turn | Location | Event 1 | -11/Scrapyard | Discovered new exit (range 3) 61 | -11/Scrapyard | Entered Materials 308 | -10/Materials | Build established: Mutant 476 | -10/Materials | Discovered new exit (range 8) 601 | -10/Materials | Central database locked down 771 | -10/Materials | Discovered new exit (range 14) 921 | -10/Materials | Core integrity fell below 50% 961 | -10/Materials | Derelicts attacked the area 1673 | -10/Materials | Discovered new exit (range 9) 1726 | -10/Materials | Discovered new exit (range 4) 1736 | -10/Materials | Discovered new exit (range 16) 1859 | -10/Materials | Entered Mines 1900 | -10/Mines | Met a Derelict bent on vengeance 2042 | -10/Mines | Discovered new exit (range 7) 2076 | -10/Mines | Discovered new exit (range 7) 2234 | -10/Mines | A weapon hastily lodged in a ceiling crevice suddenly fell to the ground 2512 | -10/Mines | Learned location of Storage (-9) 2615 | -10/Mines | Deemed a non-threat by the Exiles lab entrance 2615 | -10/Mines | Discovered new exit (range 5) 2622 | -10/Mines | Entered Exiles 2622 | -10/Exiles | Found Exiles lab abandoned 3213 | -10/Exiles | Discovered new exit (range 14) 3234 | -10/Exiles | Entered Mines 3327 | -9/Mines | Core integrity fell below 20% 3428 | -9/Mines | Met a Derelict shopkeep closing up shop 3560 | -9/Mines | Found a damaged Exp. Sensor Array with a note attached 3564 | -9/Mines | Found Prototype Device 3626 | -9/Mines | Discovered new exit (range 14) 3670 | -9/Mines | Entered Materials 3670 | -8/Materials | Evolved 4 slots: Utility x4 3671 | -8/Materials | Identified Exp. Sensor Array 4070 | -8/Materials | Build established: Scavenger-Mutant 4217 | -8/Materials | Discovered new exit (range 5) 5163 | -8/Materials | Repaired Imp. Medium Armor Plating? 5230 | -8/Materials | Repaired Hrd. Medium Armor Plating 5378 | -8/Materials | Build established: Mutant 6677 | -8/Materials | Core integrity fell below 50% 6710 | -8/Materials | Discovered new exit (range 8) 7269 | -8/Materials | Repaired Structural Scanner 7270 | -8/Materials | First assault squad dispatched 7382 | -8/Materials | Destroyed 9 combat bots 7471 | -8/Materials | Build established: Hacker-Mutant 7502 | -8/Materials | Entered Factory 7502 | -7/Factory | Evolved 2 slots: Utility x2 7614 | -7/Factory | Lost 3 parts (1n1u1w) 7729 | -7/Factory | Self-destructed Last Messages --------------- 07639_ Acquired Arm. Treads. 07639_ R-06 Scavenger collects Imp. Sensor Array. 07640_ Acquired 62 matter. 07647_ U-05 Engineer lays Concrete. 07647_ R-06 Scavenger destroyed. 07648_ U-05 Engineer lays Concrete. 07656_ Acquired Com. Wheel. 07657_ Acquired 98 matter. 07657_ U-05 Engineer builds a Door. 07661_ Acquired Imp. Sensor Array. 07676_ U-05 Engineer works on Assembly Bed. 07706_ >> Machine Analyzer network decryption results: 07706_ Garrison Access x2 07710_ Connecting with Garrison Access... 07710_ Current location identified: Factory 07710_ ALERT: Suspicious activity at Garrison Access F002. Dispatching Investigation squad. 07713_ U-05 Engineer builds a Wall. 07720_ U-05 Engineer works on Assembly Bed. 07729_ Connecting with Terminal... Map ----- +----------------------------------------------------+ | ?? ??????????????????????????????????????? | | ??####+####??????????????###?????????????????????? | | ??## ####????????????###?????????????????????? | | ??## % ####???????????? ?????????????????????? | | #### ?????????""" """????????????????????? | | #### ##???????????""" """????????????????????? | | # ##???????????""" """? ????????????????? | | # #########?## ? ??? ??"""T"""???????? | | #* / ############ """ """ ????????????????? | | # ##### """ """ # ??????????????? | | #* T#### """ """ # ??????????????? | | + """ """ #### # """?"""???????? | | !# """ """ ##### ????"""?"""???????? | | # """ """ ##### "" "" ?????"""?"""???????? | | # ##### ""G"" # ????????? | | # ###########+#############????????? | | # a ????????? | | # ! ##??????????????? | | #### g ##??????????????? | | #### """" """" "" "u""""g"""" ##??????????????? | | ??## """" """" "" """" """" ##??????????????? | | #### """" """" "" """" """" ##??????????????? | | #### """" """" " """" """" ##??????????????? | | """" """" """" """" ##??????????????? | | """" """" """" """" ## ?????????????? | | @ + ?????????????? | | """"T"""" # ?????????????? | | """"""""""" # ?????????????? | | ########### ################ + ?????????????? | | # # ####### ?????????????? | | ????????????? # ???????????????????????????????? | | ??????????????? # ???????????????????????????????? | | ?????????????????????????????????????????????????? | | ?????????????????????????????????????????????????? | | ?????????????????????????????????????????????????? | | ??????????????r??????????????????????????????????? | | ?????????????????????????????????????????????????? | | ??????????????????o??????????????????????????????? | | ?????????????????????????????????????????????????? | | ?????????????????????????????????????????????????? | | ?????????????????????????????????????????????????? | | ?????????????????????????????????????????????????? | | ?????????????????????????????????????????????????? | | ?????????????????????????????????????????????????? | | ?????????????????????????????????????????????????? | | ?????????????????????????????????????????????????? | | ?????????????????????????????????????????????????? | | ?????????????????????????????????????????????????? | | ?????????????????????????????????????????????????? | | ?????????????????????????????????????????????????? | +----------------------------------------------------+ Best States ------------- Heat Dissipation 45 Energy Generation 17 Energy Capacity 300 Matter Stores 300 Matter Capacity 300 Sight Range 16 Robot Scan Range 15 Terrain Scan Density 10 Armor Coverage 675 Power Shielding 33 Evasion (%) 55 Recoil Reduction 2 Offensive Hacking 10 Defensive Hacking 10 Authchip Count 1 Item Schematics ----------------- Trap Extractor | -8/Materials | Hacked Robot Schematics ------------------ None Fabricated ------------ Nothing Alien Tech Used ----------------- None Achievements -------------- None Challenges ------------ None Game ------ Seed ReactiveThunderExtractor Manual? 0 Play Time 01:00:28 Cumulative 449.8 hours Start 2024.12.14 @ 01:43:47 End 2024.12.14 @ 12:39:26 Sessions 3 Manual Loads 0 Difficulty Rogue Special Mode None Game No. 234 Rogue 90 Adventurer 144 Explorer 0 Win Type - Total 8 Types 4/0/3/1/0/0/0/0/0 Lore% 61 Gallery% 80 Achievement% 67 Wizard Run 0 Options --------- Layout 0 ASCII 0 Keyboard 0 Movement Mouse Keybinds 0 Fullscreen 2 Font 20/SmallcapsGlow Map View 66x50 Zoom Use 0% Tactical HUD 1 Map Filters NONE Filters NONE Steam X RUN: a2f6a329-3cd2-4555-adf7-fb750b05faf7